Workbook

Sheet Couverture Zone Cofi
A1: Référence de la Zone de cofinancement | B1: Nom de la Zone de cofinancement | K1: Total raccordables fin 2021
C2: 2018 | E2: 2019 | G2: 2020 | I2: 2021
C3: Couverts | D3: Raccordables | E3: Couverts | F3: Raccordables | G3: Couverts | H3: Raccordables | I3: Couverts | J3: Raccordables | K3: Raccordables
A4: 201801-53147-MAYE | B4: Mayenne Fibre | C4: 10000 | D4: 3000 | E4: 25844 | F4: 32127.12 | G4: 38699 | H4: 37925.02 | I4: 34926 | J4: 36416.86 | K4: =I4+G4+E4+C4 -> 109469

Sheet Détails Zone de Cofi
A1: Référence de la Zone de cofinancement | B1: Nom de la Zone de cofinancement | C1: Référence NRO | D1: Communes couvertes par le NRO | E1: Code INSEE commune | F1: Fin de déploiement | G1: Nombre de Logements couverts | H1: Nombre de Logements raccordables
A2: 201801-53147-MAYE | B2: Mayenne Fibre | C2: 53005ADQ | D2: Alexain | E2: 53002 | F2: 2021 | G2: 295 | H2: =G2 -> 295
C3: 53005ADQ | D3: Andouillé | E3: 53005 | F3: 2021 | G3: 1227 | H3: =G3 -> 1227
C4: 53005ADQ | D4: La Bigottiere | E4: 53031 | F4: 2021 | G4: 222 | H4: =G4*0.98 -> 217.56
C5: 53005ADQ | D5: Place | E5: 53179 | F5: 2021 | G5: 191 | H5: =G5*0.98 -> 187.18
C6: 53005ADQ | D6: Saint-Germain-d'Anxure | E6: 53222 | F6: 2021 | G6: 181 | H6: =G6 -> 181
C7: 53005ADQ | D7: Saint-Germain-le-Guillaume | E7: 53225 | F7: 2021 | G7: 254 | H7: =G7 -> 254
A8: 201801-53147-MAYE | B8: Mayenne Fibre | C8: 53003AVJ | D8: Ambrières-les-Vallées | E8: 53003 | F8: 2021 | G8: 1707 | H8: =G8*0.98 -> 1672.86
C9: 53003AVJ | D9: Couesmes-Vaucé | E9: 53079 | F9: 2021 | G9: 350 | H9: 343
C10: 53003AVJ | D10: La Haie-Traversaine | E10: 53111 | F10: 2021 | G10: 252 | H10: 246.96
C11: 53003AVJ | D11: Le Pas | E11: 53176 | F11: 2021 | G11: 352 | H11: 344.96
C12: 53003AVJ | D12: Soucé | E12: 53261 | F12: 2021 | G12: 112 | H12: 109.76
A13: 201801-53147-MAYE | B13: Mayenne Fibre | C13: 53039BFQ | D13: Le Bourgneuf-la-Forêt | E13: 53039 | F13: 2021 | G13: 898 | H13: 880.04
C14: 53039BFQ | D14: Saint-Ouen-des-Toits | E14: 53243 | F14: 2021 | G14: 786 | H14: =G14 -> 786
A15: 201801-53147-MAYE | B15: Mayenne Fibre | C15: 53080CPQ | D15: Couptrain | E15: 53080 | F15: 2021 | G15: 146 | H15: 143.08
C16: 53080CPQ | D16: La Pallu | E16: 53173 | F16: 2021 | G16: 150 | H16: 147
C17: 53080CPQ | D17: Neuilly-le-Vendin | E17: 53164 | F17: 2021 | G17: 340 | H17: 333.2
C18: 53080CPQ | D18: Saint-Aignan-de-Couptrain | E18: 53196 | F18: 2021 | G18: 284 | H18: 278.32
A19: 201801-53147-MAYE | B19: Mayenne Fibre | C19: 53097EVN | D19: Assé-le-Bérenger | E19: 53010 | F19: 2021 | G19: 206 | H19: 201.88
C20: 53097EVN | D20: Châtres-la-Forêt | E20: 53065 | F20: 2021 | G20: 368 | H20: 360.64
C21: 53097EVN | D21: Evron | E21: 53097 | F21: 2021 | G21: 4148 | H21: 4065.04
C22: 53097EVN | D22: Livet | E22: 53134 | F22: 2021 | G22: 72 | H22: 70.56
C23: 53097EVN | D23: Mézangers | E23: 53153 | F23: 2021 | G23: 331 | H23: 324.38
C24: 53097EVN | D24: Neau | E24: 53163 | F24: 2021 | G24: 356 | H24: 348.88
C25: 53097EVN | D25: Saint-Christophe-du-Luat | E25: 53207 | F25: 2021 | G25: 357 | H25: 349.86
C26: 53097EVN | D26: Sainte-Gemmes-le-Robert | E26: 53218 | F26: 2021 | G26: 462 | H26: 452.76
C27: 53097EVN | D27: Saint-Georges-sur-Erve | E27: 53221 | F27: 2021 | G27: 233 | H27: 228.34
C28: 53097EVN | D28: Voutré | E28: 53276 | F28: 2021 | G28: 484 | H28: 474.32
A29: 201801-53147-MAYE | B29: Mayenne Fibre | C29: 53100FGP | D29: Fougerolles-du-Plessis | E29: 53100 | F29: 2021 | G29: 889 | H29: 871.22
C30: 53100FGP | D30: La Dorée | E30: 53093 | F30: 2021 | G30: 248 | H30: 243.04
C31: 53100FGP | D31: Landivy | E31: 53125 | F31: 2021 | G31: 783 | H31: 767.34
A32: 201801-53147-MAYE | B32: Mayenne Fibre | C32: 53226IHM | D32: Chailland | E32: 53048 | F32: 2021 | G32: 701 | H32: =G32 -> 701
C33: 53226IHM | D33: La Baconnière | E33: 53015 | F33: 2021 | G33: 779 | H33: =G33 -> 779
C34: 53226IHM | D34: Saint-Hilaire-du-Maine | E34: 53226 | F34: 2021 | G34: 392 | H34: =G34 -> 392
A35: 201801-53147-MAYE | B35: Mayenne Fibre | C35: 53124ILG | D35: Ampoigné | E35: 53004 | F35: 2021 | G35: 235 | H35: =G35 -> 235
C36: 53124ILG | D36: Denazé | E36: 53090 | F36: 2021 | G36: 81 | H36: =G36*0.98 -> 79.38
C37: 53124ILG | D37: Laigné | E37: 53124 | F37: 2021 | G37: 361 | H37: =G37*0.98 -> 353.78
C38: 53124ILG | D38: Marigne-Peuton | E38: 53145 | F38: 2021 | G38: 260 | H38: =G38*0.98 -> 254.8
C39: 53124ILG | D39: Peuton | E39: 53178 | F39: 2021 | G39: 107 | H39: =G39*0.98 -> 104.86
C40: 53124ILG | D40: Simplé | E40: 53260 | F40: 2021 | G40: 175 | H40: =G40*0.98 -> 171.5
A41: 201801-53147-MAYE | B41: Mayenne Fibre | C41: 53144IMV | D41: Belgeard | E41: 53028 | F41: 2021 | G41: 240 | H41: =G41 -> 240
C42: 53144IMV | D42: Grazay | E42: 53109 | F42: 2021 | G42: 319 | H42: =G42 -> 319
C43: 53144IMV | D43: Jublains | E43: 53122 | F43: 2021 | G43: 465 | H43: =G43*0.98 -> 455.7
C44: 53144IMV | D44: La Chapelle-au-Riboul | E44: 53057 | F44: 2021 | G44: 332 | H44: =G44 -> 332
C45: 53144IMV | D45: Marcille-la-Ville | E45: 53144 | F45: 2021 | G45: 428 | H45: =G45*0.98 -> 419.44
A46: 201801-53147-MAYE | B46: Mayenne Fibre | C46: 53123JVI | D46: Bourgon | E46: 53040 | F46: 2021 | G46: 322 | H46: 315.56
C47: 53123JVI | D47: Juvigné | E47: 53123 | F47: 2021 | G47: 786 | H47: 770.28
C48: 53123JVI | D48: La Croixille | E48: 53086 | F48: 2021 | G48: 353 | H48: 345.94
C49: 53123JVI | D49: Saint-Pierre-des-Landes | E49: 53245 | F49: 2021 | G49: 548 | H49: 537.04
A50: 201801-53147-MAYE | B50: Mayenne Fibre | C50: 53121JVR | D50: Javron-les-Chapelles | E50: 53121 | F50: 2021 | G50: 1002 | H50: 981.96
C51: 53121JVR | D51: Villepail | E51: 53272 | F51: 2021 | G51: 173 | H51: 169.54
A52: 201801-53147-MAYE | B52: Mayenne Fibre | C52: 53137LRJ | D52: Beaulieu-sur-Oudon | E52: 53026 | F52: 2021 | G52: 217 | H52: 212.66
C53: 53137LRJ | D53: La Brulatte | E53: 53045 | F53: 2021 | G53: 334 | H53: =G53 -> 334
C54: 53137LRJ | D54: Le Genest-Saint-Isle | E54: 53103 | F54: 2021 | G54: 917 | H54: =G54 -> 917
C55: 53137LRJ | D55: Loiron-Ruillé | E55: 53137 | F55: 2021 | G55: 1109 | H55: =G55*0.98 -> 1086.82
C56: 53137LRJ | D56: Montjean | E56: 53158 | F56: 2021 | G56: 490 | H56: =G56*0.98 -> 480.2
C57: 53137LRJ | D57: Saint-Cyr-le-Gravelais | E57: 53209 | F57: 2021 | G57: 255 | H57: =G57*0.98 -> 249.9
A58: 201801-53147-MAYE | B58: Mayenne Fibre | C58: 53238MFI | D58: Pontmain | E58: 53181 | F58: 2021 | G58: 492 | H58: =G58 -> 492
C59: 53238MFI | D59: Saint-Ellier-du-Maine | E59: 53213 | F59: 2021 | G59: 301 | H59: =G59 -> 301
C60: 53238MFI | D60: Saint-Mars-sur-la-Futaie | E60: 53238 | F60: 2021 | G60: 397 | H60: =G60*0.98 -> 389.06
A61: 201801-53147-MAYE | B61: Mayenne Fibre | C61: 53146MMQ | D61: La Bazouge-des-Alleux | E61: 53023 | F61: 2021 | G61: 214 | H61: 209.72
C62: 53146MMQ | D62: Martigne-sur-Mayenne | E62: 53146 | F62: 2021 | G62: 814 | H62: 797.72
C63: 53146MMQ | D63: Sace | E63: 53195 | F63: 2021 | G63: 194 | H63: 190.12
A64: 201801-53147-MAYE | B64: Mayenne Fibre | C64: 53246PNW | D64: Champfrémont | E64: 53052 | F64: 2021 | G64: 203 | H64: 198.94
C65: 53246PNW | D65: Gesvres | E65: 53106 | F65: 2021 | G65: 366 | H65: 358.68
C66: 53246PNW | D66: Ravigny | E66: 53187 | F66: 2021 | G66: 145 | H66: 142.1
C67: 53246PNW | D67: Saint-Pierre-des-Nids | E67: 53246 | F67: 2021 | G67: 1209 | H67: 1184.82
A68: 201801-53147-MAYE | B68: Mayenne Fibre | C68: 53197QAG | D68: Congrier | E68: 53073 | F68: 2021 | G68: 487 | H68: 477.26
C69: 53197QAG | D69: La Rouaudiere | E69: 53192 | F69: 2021 | G69: 167 | H69: =G69 -> 167
C70: 53197QAG | D70: Saint-Aignan-sur-Roe | E70: 53197 | F70: 2021 | G70: 493 | H70: =G70*0.98 -> 483.14
C71: 53197QAG | D71: Saint-Erblon | E71: 53214 | F71: 2021 | G71: 84 | H71: =G71*0.98 -> 82.32
C72: 53197QAG | D72: Senonnes | E72: 53259 | F72: 2021 | G72: 231 | H72: =G72 -> 231
A73: 201801-53147-MAYE | B73: Mayenne Fibre | C73: 53107QGR | D73: Brecé | E73: 53042 | F73: 2021 | G73: 519 | H73: =G73*0.98 -> 508.62
C74: 53107QGR | D74: Carelles | E74: 53047 | F74: 2021 | G74: 198 | H74: 194.04
C75: 53107QGR | D75: Colombiers-du-Plessis | E75: 53071 | F75: 2021 | G75: 314 | H75: 307.72
C76: 53107QGR | D76: Désertines | E76: 53091 | F76: 2021 | G76: 346 | H76: 339.08
C77: 53107QGR | D77: Gorron | E77: 53107 | F77: 2021 | G77: 1820 | H77: 1783.6
C78: 53107QGR | D78: Hercé | E78: 53115 | F78: 2021 | G78: 193 | H78: 189.14
C79: 53107QGR | D79: Lesbois | E79: 53131 | F79: 2021 | G79: 145 | H79: 142.1
C80: 53107QGR | D80: Levaré | E80: 53132 | F80: 2021 | G80: 190 | H80: 186.2
C81: 53107QGR | D81: Saint-Aubin-Fosse-Louvain | E81: 53199 | F81: 2021 | G81: 173 | H81: 169.54
C82: 53107QGR | D82: Saint-Berthevin-la-Tanniere | E82: 53202 | F82: 2021 | G82: 276 | H82: 270.48
C83: 53107QGR | D83: Vieuvy | E83: 53270 | F83: 2021 | G83: 89 | H83: 87.22
A84: 201801-53147-MAYE | B84: Mayenne Fibre | C84: 53234QLP | D84: Champéon | E84: 53051 | F84: 2021 | G84: 358 | H84: =G84 -> 358
C85: 53234QLP | D85: Chantrigné | E85: 53055 | F85: 2021 | G85: 402 | H85: =G85*0.98 -> 393.96
C86: 53234QLP | D86: Montreuil-Poulay | E86: 53160 | F86: 2021 | G86: 287 | H86: 281.26
C87: 53234QLP | D87: Saint-Fraimbault-de-Prieres | E87: 53216 | F87: 2021 | G87: 481 | H87: 471.38
C88: 53234QLP | D88: Saint-Loup-du-Gast | E88: 53234 | F88: 2021 | G88: 192 | H88: 188.16
A89: 201801-53147-MAYE | B89: Mayenne Fibre | C89: 53186QLT | D89: Houssay | E89: 53117 | F89: 2021 | G89: 216 | H89: 211.68
C90: 53186QLT | D90: Loigné-sur-Mayenne | E90: 53136 | F90: 2021 | G90: 377 | H90: 369.46
C91: 53186QLT | D91: Origne | E91: 53172 | F91: 2021 | G91: 170 | H91: =G91 -> 170
C92: 53186QLT | D92: Quelaines-Saint-Gault | E92: 53186 | F92: 2021 | G92: 989 | H92: =G92 -> 989
C93: 53186QLT | D93: Saint-Sulpice | E93: 53254 | F93: 2021 | G93: 123 | H93: =G93*0.98 -> 120.54
A94: 201801-53147-MAYE | B94: Mayenne Fibre | C94: 53120QTH | D94: Izé | E94: 53120 | F94: 2021 | G94: 335 | H94: 328.3
C95: 53239QTH | D95: Saint-Martin-de-Connee | E95: 53239 | F95: 2021 | G95: 325 | H95: 318.5
C96: 53249QTH | D96: Saint-Pierre-sur-Orthe | E96: 53249 | F96: 2021 | G96: 405 | H96: 396.9
C97: 53274QTH | D97: Vimarcé | E97: 53274 | F97: 2021 | G97: 170 | H97: 166.6
A98: 201801-53147-MAYE | B98: Mayenne Fibre | C98: 53190RBI | D98: Charchigné | E98: 53061 | F98: 2021 | G98: 274 | H98: 268.52
C99: 53190RBI | D99: Chevaigné-du-Maine | E99: 53069 | F99: 2021 | G99: 193 | H99: =G99 -> 193
C100: 53190RBI | D100: Hardanges | E100: 53114 | F100: 2021 | G100: 164 | H100: =G100*0.98 -> 160.72
C101: 53190RBI | D101: Le Ham | E101: 53112 | F101: 2021 | G101: 259 | H101: =G101*0.98 -> 253.82
C102: 53190RBI | D102: Le Horps | E102: 53116 | F102: 2021 | G102: 462 | H102: =G102*0.98 -> 452.76
C103: 53190RBI | D103: Le Ribay | E103: 53190 | F103: 2021 | G103: 294 | H103: =G103*0.98 -> 288.12
A104: 201801-53147-MAYE | B104: Mayenne Fibre | C104: 53191REH | D104: Ballots | E104: 53018 | F104: 2021 | G104: 631 | H104: =G104*0.98 -> 618.38
C105: 53191REH | D105: Brains-sur-les-Marches | E105: 53041 | F105: 2021 | G105: 139 | H105: =G105 -> 139
C106: 53191REH | D106: Cuillé | E106: 53088 | F106: 2021 | G106: 508 | H106: =G106*0.98 -> 497.84
C107: 53191REH | D107: Fontaine-Couverte | E107: 53098 | F107: 2021 | G107: 219 | H107: 214.62
C108: 53191REH | D108: Gastines | E108: 53102 | F108: 2021 | G108: 90 | H108: 88.2
C109: 53191REH | D109: La Roé | E109: 53191 | F109: 2021 | G109: 153 | H109: 149.94
C110: 53191REH | D110: Laubrières | E110: 53128 | F110: 2021 | G110: 164 | H110: 160.72
C111: 53191REH | D111: Saint-Michel-de-la-Roe | E111: 53242 | F111: 2021 | G111: 128 | H111: 125.44
A112: 201801-53147-MAYE | B112: Mayenne Fibre | C112: 53096RND | D112: Ernée | E112: 53096 | F112: 2021 | G112: 3386 | H112: 3318.28
C113: 53096RND | D113: La Pellerine | E113: 53177 | F113: 2021 | G113: 182 | H113: 178.36
C114: 53096RND | D114: Montenay | E114: 53155 | F114: 2021 | G114: 694 | H114: =G114 -> 694
A115: 201801-53147-MAYE | B115: Mayenne Fibre | C115: 53211SDJ | D115: Chatillon-sur-Colmont | E115: 53064 | F115: 2021 | G115: 638 | H115: =G115*0.98 -> 625.24
C116: 53211SDJ | D116: Saint-Denis-de-Gastines | E116: 53211 | F116: 2021 | G116: 942 | H116: =G116*0.98 -> 923.16
C117: 53211SDJ | D117: Vautorte | E117: 53269 | F117: 2021 | G117: 364 | H117: =G117*0.98 -> 356.72
A118: 201801-53147-MAYE | B118: Mayenne Fibre | C118: 53248SJW | D118: Bannes | E118: 53019 | F118: 2021 | G118: 73 | H118: =G118*0.98 -> 71.54
C119: 53248SJW | D119: Blandouet - Saint Jean | E119: 53228 | F119: 2021 | G119: 369 | H119: =G119 -> 369
C120: 53248SJW | D120: Cossé-en-Champagne | E120: 53076 | F120: 2021 | G120: 207 | H120: =G120*0.98 -> 202.86
C121: 53248SJW | D121: Saint-Pierre-sur-Erve | E121: 53248 | F121: 2021 | G121: 109 | H121: =G121*0.98 -> 106.82
C122: 53248SJW | D122: Saulges | E122: 53257 | F122: 2021 | G122: 192 | H122: =G122*0.98 -> 188.16
C123: 53248SJW | D123: Thorigné-en-Charnie | E123: 53264 | F123: 2021 | G123: 116 | H123: =G123*0.98 -> 113.68
A124: 201801-53147-MAYE | B124: Mayenne Fibre | C124: 53255SZW | D124: Sainte-Suzanne et Chammes | E124: 53255 | F124: 2021 | G124: 827 | H124: =G124 -> 827
C125: 53255SZW | D125: Torcé-Viviers-en-Charnie | E125: 53265 | F125: 2021 | G125: 459 | H125: =G125 -> 459
A126: 201801-53147-MAYE | B126: Mayenne Fibre | C126: 53267VGF | D126: La Bazouge-de-Chemere | E126: 53022 | F126: 2021 | G126: 263 | H126: =G126*0.98 -> 257.74
C127: 53267VGF | D127: Saint-Georges-le-Flechard | E127: 53220 | F127: 2021 | G127: 155 | H127: =G127*0.98 -> 151.9
C128: 53267VGF | D128: Saint-Leger | E128: 53232 | F128: 2021 | G128: 152 | H128: =G128*0.98 -> 148.96
C129: 53267VGF | D129: Vaiges | E129: 53267 | F129: 2021 | G129: 653 | H129: =G129*0.98 -> 639.94
A130: 201801-53147-MAYE | B130: Mayenne Fibre | C130: 53271VJH | D130: Averton | E130: 53013 | F130: 2021 | G130: 381 | H130: =G130*0.98 -> 373.38
C131: 53271VJH | D131: Crennes-sur-Fraubée | E131: 53085 | F131: 2021 | G131: 124 | H131: =G131 -> 124
C132: 53271VJH | D132: Loupfougères | E132: 53139 | F132: 2021 | G132: 269 | H132: =G132*0.98 -> 263.62
C133: 53271VJH | D133: Villaines-la-Juhel | E133: 53271 | F133: 2021 | G133: 1864 | H133: =G133*0.98 -> 1826.72
A134: 201801-53147-MAYE | B134: Mayenne Fibre | C134: 53016WBS | D134: Bais | E134: 53016 | F134: 2021 | G134: 765 | H134: =G134 -> 765
C135: 53016WBS | D135: Champgenéteux | E135: 53053 | F135: 2021 | G135: 379 | H135: 379
C136: 53016WBS | D136: Hambers | E136: 53113 | F136: 2021 | G136: 390 | H136: 390
C137: 53016WBS | D137: Saint-Thomas-de-Courceriers | E137: 53256 | F137: 2021 | G137: 173 | H137: 173
C138: 53016WBS | D138: Trans | E138: 53266 | F138: 2021 | G138: 174 | H138: 174
A139: 201801-53147-MAYE | B139: Mayenne Fibre | C139: 53077WCS | D139: Astillé | E139: 53011 | F139: 2021 | G139: 331 | H139: 331
C140: 53077WCS | D140: Cosmes | E140: 53075 | F140: 2021 | G140: 138 | H140: =G140*0.98 -> 135.24
C141: 53077WCS | D141: Cossé-le-Vivien | E141: 53077 | F141: 2021 | G141: 1537 | H141: 1506.26
C142: 53077WCS | D142: Courbeveille | E142: 53082 | F142: 2021 | G142: 262 | H142: 256.76
C143: 53077WCS | D143: La Chapelle-Craonnaise | E143: 53058 | F143: 2021 | G143: 154 | H143: 150.92
C144: 53077WCS | D144: Méral | E144: 53151 | F144: 2021 | G144: 475 | H144: 465.5
C145: 53077WCS | D145: Saint-Poix | E145: 53250 | F145: 2021 | G145: 232 | H145: 227.36
A146: 201801-53147-MAYE | B146: Mayenne Fibre | C146: 53084XCR | D146: Athée | E146: 53012 | F146: 2021 | G146: 231 | H146: 226.38
C147: 53084XCR | D147: Chérancé | E147: 53068 | F147: 2021 | G147: 89 | H147: 87.22
C148: 53084XCR | D148: Craon | E148: 53084 | F148: 2021 | G148: 2719 | H148: 2664.62
C149: 53084XCR | D149: Livré-la-Touche | E149: 53135 | F149: 2021 | G149: 362 | H149: 354.76
C150: 53084XCR | D150: Mée | E150: 53148 | F150: 2021 | G150: 105 | H150: 102.9
C151: 53084XCR | D151: Niafles | E151: 53165 | F151: 2021 | G151: 155 | H151: 151.9
C152: 53084XCR | D152: Pommerieux | E152: 53180 | F152: 2021 | G152: 281 | H152: 275.38
C153: 53084XCR | D153: Saint-Quentin-les-Anges | E153: 53251 | F153: 2021 | G153: 219 | H153: 214.62
A154: 201801-53147-MAYE | B154: Mayenne Fibre | C154: 53185XPP | D154: Boulay-les-Ifs | E154: 53038 | F154: 2021 | G154: 107 | H154: 104.86
C155: 53185XPP | D155: Lignières-Orgères | E155: 53133 | F155: 2021 | G155: 579 | H155: 567.42
C156: 53185XPP | D156: Pre-en-Pail-Saint Samson | E156: 53185 | F156: 2021 | G156: 1725 | H156: 1690.5
C157: 53185XPP | D157: Saint-Calais-du-Desert | E157: 53204 | F157: 2021 | G157: 286 | H157: 280.28
C158: 53185XPP | D158: Saint-Cyr-en-Pail | E158: 53208 | F158: 2021 | G158: 315 | H158: 308.7
A159: 201801-53147-MAYE | B159: Mayenne Fibre | C159: 53273XVC | D159: Fromentières | E159: 53101 | F159: 2021 | G159: 355 | H159: 347.9
C160: 53273XVC | D160: Ruille-Froid-Fonds | E160: 53193 | F160: 2021 | G160: 273 | H160: 267.54
C161: 53273XVC | D161: Villiers-Charlemagne | E161: 53273 | F161: 2021 | G161: 525 | H161: 514.5
A162: 201801-53147-MAYE | B162: Mayenne Fibre | C162: 53078YCD | D162: Argenton-Notre-Dame | E162: 53006 | F162: 2021 | G162: 109 | H162: 106.82
C163: 53078YCD | D163: Chatelain | E163: 53063 | F163: 2021 | G163: 226 | H163: =G163 -> 226
C164: 53078YCD | D164: Coudray | E164: 53078 | F164: 2021 | G164: 353 | H164: =G164 -> 353
C165: 53078YCD | D165: Daon | E165: 53089 | F165: 2021 | G165: 335 | H165: =G165 -> 335
C166: 53078YCD | D166: Saint-Laurent-des-Mortiers | E166: 53231 | F166: 2021 | G166: 107 | H166: =G166*0.98 -> 104.86
C167: 53078YCD | D167: Saint-Michel-de-Feins | E167: 53241 | F167: 2021 | G167: 90 | H167: =G167*0.98 -> 88.2
A168: 201801-53147-MAYE | B168: Mayenne Fibre | C168: 53127YLS | D168: Lassay-les-Chateaux | E168: 53127 | F168: 2021 | G168: 1599 | H168: =G168*0.98 -> 1567.02
C169: 53127YLS | D169: Le Housseau-Brétignolles | E169: 53118 | F169: 2021 | G169: 186 | H169: =G169 -> 186
C170: 53127YLS | D170: Madré | E170: 53142 | F170: 2021 | G170: 287 | H170: =G170*0.98 -> 281.26
C171: 53127YLS | D171: Rennes-en-Grenouilles | E171: 53189 | F171: 2021 | G171: 74 | H171: =G171 -> 74
C172: 53127YLS | D172: Sainte-Marie-du-Bois | E172: 53235 | F172: 2021 | G172: 178 | H172: =G172*0.98 -> 174.44
C173: 53127YLS | D173: Saint-Julien-du-Terroux | E173: 53230 | F173: 2021 | G173: 182 | H173: 178.36
C174: 53127YLS | D174: Thuboeuf | E174: 53263 | F174: 2021 | G174: 216 | H174: 211.68
A175: 201801-53147-MAYE | B175: Mayenne Fibre | C175: 53154YMD | D175: Larchamp | E175: 53126 | F175: 2021 | G175: 631 | H175: 618.38
C176: 53154YMD | D176: Montaudin | E176: 53154 | F176: 2021 | G176: 558 | H176: 546.84
A177: 201801-53147-MAYE | B177: Mayenne Fibre | C177: 53147YMN | D177: Aron | E177: 53008 | F177: 2021 | G177: 884 | H177: 866.32
C178: 53147YMN | D178: Commer | E178: 53072 | F178: 2021 | G178: 548 | H178: 537.04
C179: 53147YMN | D179: Contest | E179: 53074 | F179: 2021 | G179: 395 | H179: 387.1
C180: 53147YMN | D180: La Bazoge-Montpincon | E180: 53021 | F180: 2021 | G180: 349 | H180: =G180 -> 349
C181: 53147YMN | D181: Mayenne | E181: 53147 | F181: 2021 | G181: 8424 | H181: =G181*0.98 -> 8255.52
C182: 53147YMN | D182: Moulay | E182: 53162 | F182: 2021 | G182: 519 | H182: 508.62
C183: 53147YMN | D183: Oisseau | E183: 53170 | F183: 2021 | G183: 690 | H183: 676.2
C184: 53147YMN | D184: Parigne-sur-Braye | E184: 53174 | F184: 2021 | G184: 344 | H184: 337.12
C185: 53147YMN | D185: Saint-Baudelle | E185: 53200 | F185: 2021 | G185: 456 | H185: 446.88
C186: 53147YMN | D186: Saint-Georges-Buttavent | E186: 53219 | F186: 2021 | G186: 784 | H186: 768.32
C187: 53147YMN | D187: Saint-Mars-sur-Colmont | E187: 53237 | F187: 2021 | G187: 308 | H187: 301.84
A188: 201801-53147-MAYE | B188: Mayenne Fibre | C188: 53083ZCC | D188: Courcité | E188: 53083 | F188: 2021 | G188: 555 | H188: 543.9
C189: 53083ZCC | D189: Saint-Aubin-du-Desert | E189: 53198 | F189: 2021 | G189: 205 | H189: 200.9
C190: 53083ZCC | D190: Saint-Germain-de-Coulamer | E190: 53223 | F190: 2021 | G190: 308 | H190: 301.84
C191: 53083ZCC | D191: Saint-Mars-du-Desert | E191: 53236 | F191: 2021 | G191: 163 | H191: 159.74
A192: 201801-53147-MAYE | B192: Mayenne Fibre | C192: 53066ZCM | D192: Chemazé | E192: 53066 | F192: 2021 | G192: 641 | H192: =G192 -> 641
C193: 53066ZCM | D193: Ménil | E193: 53150 | F193: 2021 | G193: 462 | H193: =G193 -> 462
A194: 201801-53147-MAYE | B194: Mayenne Fibre | C194: 53110ZGR | D194: Beaumont-Pied-de-Boeuf | E194: 53027 | F194: 2021 | G194: 110 | H194: =G194*0.98 -> 107.8
C195: 53110ZGR | D195: Bierné | E195: 53029 | F195: 2021 | G195: 360 | H195: =G195 -> 360
C196: 53110ZGR | D196: Bouère | E196: 53036 | F196: 2021 | G196: 569 | H196: =G196*0.98 -> 557.62
C197: 53110ZGR | D197: Bouessay | E197: 53037 | F197: 2021 | G197: 322 | H197: 315.56
C198: 53110ZGR | D198: Gennes-sur-Glaize | E198: 53104 | F198: 2021 | G198: 456 | H198: 446.88
C199: 53110ZGR | D199: Grez-en-Bouère | E199: 53110 | F199: 2021 | G199: 551 | H199: 539.98
C200: 53110ZGR | D200: Longuefuye | E200: 53138 | F200: 2021 | G200: 153 | H200: 149.94
... 37 more rows

Sheet détails par NRO
A1: Référence de la Zone de cofinancement | B1: Nom de la Zone de cofinancement | C1: Référence NRO | D1: Trigrame NRO | E1: ZA_CODE PM | F1: Référentiel_N° FI | G1: commune d’implantation du PM | H1: Fin de déploiement | I1: Référence RTO - n° Coloris (dans NRA Orange) | J1: Nombre de Logements couverts | K1: Nombre de Logements raccordables | L1: Statut du NRO (en étude, en cours de déploiement, déployé) | M1: Coordonnées (Réf. du NRA Orange ou coordonnées x,y pour shelter) | N1: Date prévisionnelle de MES du NRO | O1: Date prévisionnelle de MES du 1er PM du NRO
A2: 201801-53147-MAYE | B2: Mayenne Fibre | C2: 53005ADQ | D2: ADQ | E2: L_11A_150 | G2: Andouillé | H2: 2021 | I2: COL01000000009036958 | J2: 412 | K2: 412 | L2: RTO livré | M2: 53005ANL | N2: T3 2019 | O2: T3 2019
C3: 53005ADQ | D3: ADQ | E3: L_11A_151 | G3: Andouillé | H3: 2021 | I3: COL01000000009036958 | J3: 337 | K3: 337 | L3: RTO livré | M3: 53005ANL | N3: T3 2019 | O3: T3 2019
C4: 53005ADQ | D4: ADQ | E4: L_11A_152 | G4: Andouillé | H4: 2021 | I4: COL01000000009036958 | J4: 414 | K4: 414 | L4: RTO livré | M4: 53005ANL | N4: T3 2019 | O4: T3 2019
C5: 53005ADQ | D5: ADQ | E5: L_11A_163 | G5: Andouillé | H5: 2021 | I5: COL01000000009036958 | J5: 449 | K5: 449 | L5: RTO livré | M5: 53005ANL | N5: T3 2019 | O5: T3 2019
C6: 53005ADQ | D6: ADQ | E6: L_11A_199 | G6: Alexain | H6: 2021 | I6: COL01000000009036958 | J6: 456 | K6: 456 | L6: RTO livré | M6: 53005ANL | N6: T3 2019 | O6: T3 2019
C7: 53005ADQ | D7: ADQ | E7: L_11A_200 | G7: La Bigottiere | H7: 2021 | I7: COL01000000009036958 | J7: 420 | K7: 420 | L7: RTO livré | M7: 53005ANL | N7: T3 2019 | O7: T3 2019
A8: 201801-53147-MAYE | B8: Mayenne Fibre | C8: 53003AVJ | D8: AVJ | E8: F_14A_248 | F8: FI-53003-0000 | G8: Ambrières-les-Vallées | H8: 2021 | I8: COL01000000008520928 | J8: 352 | K8: 352 | L8: RTO livré | M8: 53003AMB | N8: T3 2019 | O8: T3 2019
C9: 53003AVJ | D9: AVJ | E9: F_14A_263 | F9: FI-53003-0001 | G9: Ambrières-les-Vallées | H9: 2021 | I9: COL01000000008520928 | J9: 321 | K9: 321 | L9: RTO livré | M9: 53003AMB | N9: T3 2019 | O9: T3 2019
C10: 53003AVJ | D10: AVJ | E10: F_14A_265 | F10: FI-53003-0002 | G10: Ambrières-les-Vallées | H10: 2021 | I10: COL01000000008520928 | J10: 264 | K10: 264 | L10: RTO livré | M10: 53003AMB | N10: T3 2019 | O10: T3 2019
C11: 53003AVJ | D11: AVJ | E11: F_14A_266 | F11: FI-53003-0003 | G11: Ambrières-les-Vallées | H11: 2021 | I11: COL01000000008520928 | J11: 339 | K11: 339 | L11: RTO livré | M11: 53003AMB | N11: T3 2019 | O11: T3 2019
C12: 53003AVJ | D12: AVJ | E12: F_14A_244 | F12: FI-53111-0000 | G12: La Haie-Traversaine | H12: 2021 | I12: COL01000000008520928 | J12: 336 | K12: 336 | L12: RTO livré | M12: 53003AMB | N12: T3 2019 | O12: T3 2019
C13: 53003AVJ | D13: AVJ | E13: F_14A_260 | F13: FI-53176-0000 | G13: Le Pas | H13: 2021 | I13: COL01000000008520928 | J13: 366 | K13: 366 | L13: RTO livré | M13: 53003AMB | N13: T3 2019 | O13: T3 2019
C14: 53003AVJ | D14: AVJ | E14: F_14A_262 | F14: FI-53079-0000 | G14: Couesmes-Vaucé | H14: 2021 | I14: COL01000000008520928 | J14: 379 | K14: 379 | L14: RTO livré | M14: 53003AMB | N14: T3 2019 | O14: T3 2019
C15: 53003AVJ | D15: AVJ | E15: F_14A_307 | F15: FI-53003-0005 | G15: Ambrières-les-Vallées | H15: 2021 | I15: COL01000000008520928 | J15: 355 | K15: 355 | L15: RTO livré | M15: 53003AMB | N15: T3 2019 | O15: T3 2019
C16: 53003AVJ | D16: AVJ | E16: AVJ_604 | F16: FI-53003-0004 | G16: Ambrières-les-Vallées | H16: 2021 | I16: COL01000000008520928 | J16: 429 | K16: 429 | L16: RTO livré | M16: 53003AMB | N16: T3 2019 | O16: T3 2019
A17: 201801-53147-MAYE | B17: Mayenne Fibre | C17: 53039BFQ | D17: BFQ | E17: M_07A_154 | G17: Le Bourgneuf-la-Forêt | H17: 2021 | I17: COL01000000008933845 | J17: 339 | K17: 339 | L17: RTO livré | M17: 53039BLF | N17: T3 2019 | O17: T3 2019
C18: 53039BFQ | D18: BFQ | E18: M_07A_155 | G18: Le Bourgneuf-la-Forêt | H18: 2021 | I18: COL01000000008933845 | J18: 339 | K18: 339 | L18: RTO livré | M18: 53039BLF | N18: T3 2019 | O18: T3 2019
C19: 53039BFQ | D19: BFQ | E19: M_07A_157 | G19: Le Bourgneuf-la-Forêt | H19: 2021 | I19: COL01000000008933845 | J19: 363 | K19: 363 | L19: RTO livré | M19: 53039BLF | N19: T3 2019 | O19: T3 2019
C20: 53039BFQ | D20: BFQ | E20: M_08A_098 | G20: Saint-Ouen-des-Toits | H20: 2021 | I20: COL01000000008933845 | J20: 335 | K20: 335 | L20: RTO livré | M20: 53039BLF | N20: T3 2019 | O20: T3 2019
C21: 53039BFQ | D21: BFQ | E21: M_08A_099 | G21: Saint-Ouen-des-Toits | H21: 2021 | I21: COL01000000008933845 | J21: 326 | K21: 326 | L21: RTO livré | M21: 53039BLF | N21: T3 2019 | O21: T3 2019
C22: 53039BFQ | D22: BFQ | E22: M_08A_153 | G22: Saint-Ouen-des-Toits | H22: 2021 | I22: COL01000000008933845 | J22: 353 | K22: 353 | L22: RTO livré | M22: 53039BLF | N22: T3 2019 | O22: T3 2019
A23: 201801-53147-MAYE | B23: Mayenne Fibre | C23: 53080CPQ | D23: CPQ | E23: C_21A_281 | G23: Neuilly-le-Vendin | H23: 2021 | I23: COL01000000009364482 | J23: 444 | K23: 444 | L23: RTO livré | M23: 53080COU | N23: T3 2019 | O23: T3 2019
C24: 53080CPQ | D24: CPQ | E24: C_21A_282 | G24: Saint-Aignan-de-Couptrain | H24: 2021 | I24: COL01000000009364482 | J24: 360 | K24: 360 | L24: RTO livré | M24: 53080COU | N24: T3 2019 | O24: T3 2019
C25: 53080CPQ | D25: CPQ | E25: C_21A_303 | G25: Couptrain | H25: 2021 | I25: COL01000000009364482 | J25: 445 | K25: 445 | L25: RTO livré | M25: 53080COU | N25: T3 2019 | O25: T3 2019
A26: 201801-53147-MAYE | B26: Mayenne Fibre | C26: 53097EVN | D26: EVN | E26: M_19B_110 | F26: FI-53097-0008 | G26: Evron | H26: 2021 | I26: COL01000000008148197 | J26: 339 | K26: 339 | L26: RTO livré | M26: 53097ERV | N26: T4 2018 | O26: T4 2018
C27: 53097EVN | D27: EVN | E27: M_19B_111 | F27: FI-53097-0004 | G27: Evron | H27: 2021 | I27: COL01000000008148197 | J27: 374 | K27: 374 | L27: RTO livré | M27: 53097ERV | N27: T4 2018 | O27: T4 2018
C28: 53097EVN | D28: EVN | E28: M_19B_112 | F28: FI-53097-0007 | G28: Evron | H28: 2021 | I28: COL01000000008148197 | J28: 346 | K28: 346 | L28: RTO livré | M28: 53097ERV | N28: T4 2018 | O28: T4 2018
C29: 53097EVN | D29: EVN | E29: M_19B_113 | F29: FI-53097-0000 | G29: Evron | H29: 2021 | I29: COL01000000008148197 | J29: 342 | K29: 342 | L29: RTO livré | M29: 53097ERV | N29: T4 2018 | O29: T4 2018
C30: 53097EVN | D30: EVN | E30: M_19B_116 | F30: FI-53097-0009 | G30: Evron | H30: 2021 | I30: COL01000000008148197 | J30: 376 | K30: 376 | L30: RTO livré | M30: 53097ERV | N30: T4 2018 | O30: T4 2018
C31: 53097EVN | D31: EVN | E31: M_19B_119 | F31: FI-53097-0001 | G31: Evron | H31: 2021 | I31: COL01000000008148197 | J31: 356 | K31: 356 | L31: RTO livré | M31: 53097ERV | N31: T4 2018 | O31: T4 2018
C32: 53097EVN | D32: EVN | E32: M_19B_121 | F32: FI-53097-0005 | G32: Evron | H32: 2021 | I32: COL01000000008148197 | J32: 340 | K32: 340 | L32: RTO livré | M32: 53097ERV | N32: T4 2018 | O32: T4 2018
C33: 53097EVN | D33: EVN | E33: M_19B_109 | F33: FI-53010-0000 | G33: Assé-le-Bérenger | H33: 2021 | I33: COL01000000008148197 | J33: 343 | K33: 343 | L33: RTO livré | M33: 53097ERV | N33: T4 2018 | O33: T4 2018
C34: 53097EVN | D34: EVN | E34: M_19B_120 | F34: FI-53097-0002 | G34: Evron | H34: 2021 | I34: COL01000000008148197 | J34: 398 | K34: 398 | L34: RTO livré | M34: 53097ERV | N34: T4 2018 | O34: T4 2018
C35: 53097EVN | D35: EVN | E35: M_19B_123 | F35: FI-53097-000A | G35: Evron | H35: 2021 | I35: COL01000000008148197 | J35: 357 | K35: 357 | L35: RTO livré | M35: 53097ERV | N35: T4 2018 | O35: T4 2018
C36: 53097EVN | D36: EVN | E36: M_19B_124 | F36: FI-53097-0003 | G36: Evron | H36: 2021 | I36: COL01000000008148197 | J36: 356 | K36: 356 | L36: RTO livré | M36: 53097ERV | N36: T4 2018 | O36: T4 2018
C37: 53097EVN | D37: EVN | E37: M_19B_125 | F37: FI-53065-0000 | G37: Châtres-la-Forêt | H37: 2021 | I37: COL01000000008148197 | J37: 352 | K37: 352 | L37: RTO livré | M37: 53097ERV | N37: T4 2018 | O37: T4 2018
C38: 53097EVN | D38: EVN | E38: M_19B_108 | F38: FI-53276-0000 | G38: Voutré | H38: 2021 | I38: COL01000000008148197 | J38: 300 | K38: 300 | L38: RTO livré | M38: 53097ERV | N38: T4 2018 | O38: T4 2018
C39: 53097EVN | D39: EVN | E39: M_19B_114 | F39: FI-53221-0000 | G39: Saint-Georges-sur-Erve | H39: 2021 | I39: COL01000000008148197 | J39: 312 | K39: 312 | L39: RTO livré | M39: 53097ERV | N39: T4 2018 | O39: T4 2018
C40: 53097EVN | D40: EVN | E40: M_19B_122 | F40: FI-53097-0006 | G40: Evron | H40: 2021 | I40: COL01000000008148197 | J40: 396 | K40: 396 | L40: RTO livré | M40: 53097ERV | N40: T4 2018 | O40: T4 2018
C41: 53097EVN | D41: EVN | E41: M_19B_115 | F41: FI-53218-0000 | G41: Sainte-Gemmes-le-Robert | H41: 2021 | I41: COL01000000008148197 | J41: 411 | K41: 411 | L41: RTO livré | M41: 53097ERV | N41: T4 2018 | O41: T4 2018
C42: 53097EVN | D42: EVN | E42: M_19B_117 | F42: FI-53153-0000 | G42: Mézangers | H42: 2021 | I42: COL01000000008148197 | J42: 334 | K42: 334 | L42: RTO livré | M42: 53097ERV | N42: T4 2018 | O42: T4 2018
C43: 53097EVN | D43: EVN | E43: M_19B_118 | F43: FI-53163-0000 | G43: Neau | H43: 2021 | I43: COL01000000008148197 | J43: 419 | K43: 419 | L43: RTO livré | M43: 53097ERV | N43: T4 2018 | O43: T4 2018
C44: 53097EVN | D44: EVN | E44: M_19B_126 | F44: FI-53207-0000 | G44: Saint-Christophe-du-Luat | H44: 2021 | I44: COL01000000008148197 | J44: 405 | K44: 405 | L44: RTO livré | M44: 53097ERV | N44: T4 2018 | O44: T4 2018
A45: 201801-53147-MAYE | B45: Mayenne Fibre | C45: 53100FGP | D45: FGP | E45: C_07A_186 | G45: Landivy | H45: 2021 | I45: COL01000000009043249 | J45: 416 | K45: 416 | L45: RTO livré | M45: 53100FOU | N45: T1 2020 | O45: T1 2020
C46: 53100FGP | D46: FGP | E46: C_07A_187 | G46: Landivy | H46: 2021 | I46: COL01000000009043249 | J46: 404 | K46: 404 | L46: RTO livré | M46: 53100FOU | N46: T1 2020 | O46: T1 2020
C47: 53100FGP | D47: FGP | E47: C_07A_188 | G47: Fougerolles-du-Plessis | H47: 2021 | I47: COL01000000009043249 | J47: 403 | K47: 403 | L47: RTO livré | M47: 53100FOU | N47: T1 2020 | O47: T1 2020
C48: 53100FGP | D48: FGP | E48: C_07A_189 | G48: Fougerolles-du-Plessis | H48: 2021 | I48: COL01000000009043249 | J48: 388 | K48: 388 | L48: RTO livré | M48: 53100FOU | N48: T1 2020 | O48: T1 2020
C49: 53100FGP | D49: FGP | E49: C_07A_190 | G49: Fougerolles-du-Plessis | H49: 2021 | I49: COL01000000009043249 | J49: 444 | K49: 444 | L49: RTO livré | M49: 53100FOU | N49: T1 2020 | O49: T1 2020
A50: 201801-53147-MAYE | B50: Mayenne Fibre | C50: 53226IHM | D50: IHM | E50: K_08B_156 | G50: La Baconnière | H50: 2021 | I50: COL01000000009537401 | J50: 444 | K50: 444 | L50: RTO livré | M50: 53226SHM | N50: T3 2019 | O50: T3 2019
C51: 53226IHM | D51: IHM | E51: K_08B_158 | G51: La Baconnière | H51: 2021 | I51: COL01000000009537401 | J51: 406 | K51: 406 | L51: RTO livré | M51: 53226SHM | N51: T3 2019 | O51: T3 2019
C52: 53226IHM | D52: IHM | E52: K_08B_159 | G52: Saint-Hilaire-du-Maine | H52: 2021 | I52: COL01000000009537401 | J52: 422 | K52: 422 | L52: RTO livré | M52: 53226SHM | N52: T3 2019 | O52: T3 2019
C53: 53226IHM | D53: IHM | E53: K_08B_164 | G53: Chailland | H53: 2021 | I53: COL01000000009537401 | J53: 396 | K53: 396 | L53: RTO livré | M53: 53226SHM | N53: T3 2019 | O53: T3 2019
C54: 53226IHM | D54: IHM | E54: K_08B_165 | G54: Chailland | H54: 2021 | I54: COL01000000009537401 | J54: 343 | K54: 343 | L54: RTO livré | M54: 53226SHM | N54: T3 2019 | O54: T3 2019
A55: 201801-53147-MAYE | B55: Mayenne Fibre | C55: 53124ILG | D55: ILG | E55: W_10A_039 | F55: FI-53124-0001 | G55: Ampoigné | H55: 2021 | I55: COL01000000010614869 | J55: 417 | K55: 417 | L55: en cours de déploiement | M55: 53124LAI | N55: T3 2019 | O55: T3 2019
C56: 53124ILG | D56: ILG | E56: W_10A_040 | F56: FI-53145-0000 | G56: Marigne-Peuton | H56: 2021 | I56: COL01000000010614869 | J56: 432 | K56: 432 | L56: en cours de déploiement | M56: 53124LAI | N56: T3 2019 | O56: T3 2019
C57: 53124ILG | D57: ILG | E57: W_10A_041 | F57: FI-53260-0000 | G57: Simplé | H57: 2021 | I57: COL01000000010614869 | J57: 332 | K57: 332 | L57: en cours de déploiement | M57: 53124LAI | N57: T3 2019 | O57: T3 2019
C58: 53124ILG | D58: ILG | E58: ILG_803 | F58: FI-53124-0000 | G58: Laigné | H58: 2021 | I58: COL01000000010614869 | J58: 391 | K58: 391 | L58: en cours de déploiement | M58: 53124LAI | N58: T3 2019 | O58: T3 2019
A59: 201801-53147-MAYE | B59: Mayenne Fibre | C59: 53144IMV | D59: IMV | E59: I_17A_233 | G59: Belgeard | H59: 2021 | I59: COL01000000009037072 | J59: 359 | K59: 359 | L59: RTO livré | M59: 53144MV3 | N59: T4 2019 | O59: T4 2019
C60: 53144IMV | D60: IMV | E60: I_17A_234 | G60: Jublains | H60: 2021 | I60: COL01000000009037072 | J60: 419 | K60: 419 | L60: RTO livré | M60: 53144MV3 | N60: T4 2019 | O60: T4 2019
C61: 53144IMV | D61: IMV | E61: I_17A_236 | G61: Grazay | H61: 2021 | I61: COL01000000009037072 | J61: 360 | K61: 360 | L61: RTO livré | M61: 53144MV3 | N61: T4 2019 | O61: T4 2019
C62: 53144IMV | D62: IMV | E62: I_17A_237 | G62: La Chapelle-au-Riboul | H62: 2021 | I62: COL01000000009037072 | J62: 401 | K62: 401 | L62: RTO livré | M62: 53144MV3 | N62: T4 2019 | O62: T4 2019
C63: 53144IMV | D63: IMV | E63: I_17A_238 | G63: Marcille-la-Ville | H63: 2021 | I63: COL01000000009037072 | J63: 367 | K63: 367 | L63: RTO livré | M63: 53144MV3 | N63: T4 2019 | O63: T4 2019
A64: 201801-53147-MAYE | B64: Mayenne Fibre | C64: 53123JVI | D64: JVI | E64: K_06A_100 | G64: Bourgon | H64: 2021 | I64: COL01000000009004182 | J64: 346 | K64: 346 | L64: RTO livré | M64: 53123JUV | N64: T1 2020 | O64: T1 2020
C65: 53123JVI | D65: JVI | E65: K_06A_101 | G65: La Croixille | H65: 2021 | I65: COL01000000009004182 | J65: 361 | K65: 361 | L65: RTO livré | M65: 53123JUV | N65: T1 2020 | O65: T1 2020
C66: 53123JVI | D66: JVI | E66: K_06A_160 | G66: Juvigné | H66: 2021 | I66: COL01000000009004182 | J66: 337 | K66: 337 | L66: RTO livré | M66: 53123JUV | N66: T1 2020 | O66: T1 2020
C67: 53123JVI | D67: JVI | E67: K_06A_161 | G67: Juvigné | H67: 2021 | I67: COL01000000009004182 | J67: 437 | K67: 437 | L67: RTO livré | M67: 53123JUV | N67: T1 2020 | O67: T1 2020
C68: 53123JVI | D68: JVI | E68: K_06A_162 | G68: Saint-Pierre-des-Landes | H68: 2021 | I68: COL01000000009004182 | J68: 448 | K68: 448 | L68: RTO livré | M68: 53123JUV | N68: T1 2020 | O68: T1 2020
A69: 201801-53147-MAYE | B69: Mayenne Fibre | C69: 53121JVR | D69: JVR | E69: E_20A_283 | F69: FI-53121-0001 | G69: Javron-les-Chapelles | H69: 2021 | I69: COL01000000008687072 | J69: 373 | K69: 373 | L69: RTO livré | M69: 53121JAV | N69: T2 2019 | O69: T2 2019
C70: 53121JVR | D70: JVR | E70: E_20A_284 | F70: FI-53121-0000 | G70: Javron-les-Chapelles | H70: 2021 | I70: COL01000000008687072 | J70: 380 | K70: 380 | L70: RTO livré | M70: 53121JAV | N70: T2 2019 | O70: T2 2019
C71: 53121JVR | D71: JVR | E71: E_20A_285 | F71: FI-53121-0002 | G71: Javron-les-Chapelles | H71: 2021 | I71: COL01000000008687072 | J71: 356 | K71: 356 | L71: RTO livré | M71: 53121JAV | N71: T2 2019 | O71: T2 2019
A72: 201801-53147-MAYE | B72: Mayenne Fibre | C72: 53137LRJ | D72: LRJ | E72: P_07A_042 | G72: Montjean | H72: 2021 | I72: COL01000000008770125 | J72: 343 | K72: 343 | L72: RTO livré | M72: 53137LOI | N72: T1 2020 | O72: T1 2020
C73: 53137LRJ | D73: LRJ | E73: P_07A_043 | G73: Saint-Cyr-le-Gravelais | H73: 2021 | I73: COL01000000008770125 | J73: 342 | K73: 342 | L73: RTO livré | M73: 53137LOI | N73: T1 2020 | O73: T1 2020
C74: 53137LRJ | D74: LRJ | E74: P_07A_044 | G74: Montjean | H74: 2021 | I74: COL01000000008770125 | J74: 336 | K74: 336 | L74: RTO livré | M74: 53137LOI | N74: T1 2020 | O74: T1 2020
C75: 53137LRJ | D75: LRJ | E75: P_07A_045 | G75: Loiron-Ruillé | H75: 2021 | I75: COL01000000008770125 | J75: 421 | K75: 421 | L75: RTO livré | M75: 53137LOI | N75: T1 2020 | O75: T1 2020
C76: 53137LRJ | D76: LRJ | E76: P_07A_053 | G76: Loiron-Ruillé | H76: 2021 | I76: COL01000000008770125 | J76: 370 | K76: 370 | L76: RTO livré | M76: 53137LOI | N76: T1 2020 | O76: T1 2020
C77: 53137LRJ | D77: LRJ | E77: P_07A_054 | G77: Loiron-Ruillé | H77: 2021 | I77: COL01000000008770125 | J77: 331 | K77: 331 | L77: RTO livré | M77: 53137LOI | N77: T1 2020 | O77: T1 2020
C78: 53137LRJ | D78: LRJ | E78: P_07A_055 | G78: Loiron-Ruillé | H78: 2021 | I78: COL01000000008770125 | J78: 351 | K78: 351 | L78: RTO livré | M78: 53137LOI | N78: T1 2020 | O78: T1 2020
C79: 53137LRJ | D79: LRJ | E79: P_07A_096 | G79: Le Genest-Saint-Isle | H79: 2021 | I79: COL01000000008770125 | J79: 444 | K79: 444 | L79: RTO livré | M79: 53137LOI | N79: T1 2020 | O79: T1 2020
C80: 53137LRJ | D80: LRJ | E80: P_07A_097 | G80: Le Genest-Saint-Isle | H80: 2021 | I80: COL01000000008770125 | J80: 454 | K80: 454 | L80: RTO livré | M80: 53137LOI | N80: T1 2020 | O80: T1 2020
A81: 201801-53147-MAYE | B81: Mayenne Fibre | C81: 53238MFI | D81: MFI | E81: D_06B_183 | G81: Saint-Ellier-du-Maine | H81: 2021 | I81: COL01000000009043265 | J81: 431 | K81: 431 | L81: RTO livré | M81: 53238SMA | N81: T2 2020 | O81: T2 2020
C82: 53238MFI | D82: MFI | E82: D_06B_184 | G82: Saint-Mars-sur-la-Futaie | H82: 2021 | I82: COL01000000009043265 | J82: 456 | K82: 456 | L82: RTO livré | M82: 53238SMA | N82: T2 2020 | O82: T2 2020
C83: 53238MFI | D83: MFI | E83: D_06B_185 | G83: Pontmain | H83: 2021 | I83: COL01000000009043265 | J83: 451 | K83: 451 | L83: RTO livré | M83: 53238SMA | N83: T2 2020 | O83: T2 2020
A84: 201801-53147-MAYE | B84: Mayenne Fibre | C84: 53146MMQ | D84: MMQ | E84: L_13A_148 | F84: FI-53195-0000 | G84: SACE | H84: 2021 | I84: COL01000000008451093 | J84: 355 | K84: 355 | L84: RTO livré | M84: 53146MG3 | N84: T4 2018 | O84: T4 2018
C85: 53146MMQ | D85: MMQ | E85: L_13A_149 | F85: FI-53146-0001 | G85: MARTIGNE SUR MAYENNE | H85: 2021 | I85: COL01000000008451093 | J85: 396 | K85: 396 | L85: RTO livré | M85: 53146MG3 | N85: T4 2018 | O85: T4 2018
C86: 53146MMQ | D86: MMQ | E86: MMQ_149 | F86: FI-53146-0000 | G86: MARTIGNE SUR MAYENNE | H86: 2021 | I86: COL01000000008451093 | J86: 383 | K86: 383 | L86: RTO livré | M86: 53146MG3 | N86: T4 2018 | O86: T4 2018
C87: 53146MMQ | D87: MMQ | E87: L_13A_133 | F87: FI-53023-0000 | G87: LA BAZOUGE DES ALLEUX | H87: 2021 | I87: COL01000000008451093 | J87: 419 | K87: 419 | L87: RTO livré | M87: 53146MG3 | N87: T4 2018 | O87: T4 2018
A88: 201801-53147-MAYE | B88: Mayenne Fibre | C88: 53246PNW | D88: PNW | E88: F_25A_291 | F88: FI-53106-0000 | G88: Gesvres | H88: 2021 | I88: COL01000000008451098 | J88: 389 | K88: 389 | L88: RTO livré | M88: 53246SPN | N88: T3 2018 | O88: T3 2018
C89: 53246PNW | D89: PNW | E89: F_25A_292 | F89: FI-53038-0000 | G89: BOULAY LES IFS | H89: 2021 | I89: COL01000000008451098 | J89: 320 | K89: 320 | L89: RTO livré | M89: 53246SPN | N89: T3 2018 | O89: T3 2018
C90: 53246PNW | D90: PNW | E90: F_25A_293 | F90: FI-53246-0000 | G90: Saint-Pierre-des-Nids | H90: 2021 | I90: COL01000000008451098 | J90: 386 | K90: 386 | L90: RTO livré | M90: 53246SPN | N90: T3 2018 | O90: T3 2018
C91: 53246PNW | D91: PNW | E91: F_25A_294 | F91: FI-53246-0001 | G91: Saint-Pierre-des-Nids | H91: 2021 | I91: COL01000000008451098 | J91: 397 | K91: 397 | L91: RTO livré | M91: 53246SPN | N91: T3 2018 | O91: T3 2018
C92: 53246PNW | D92: PNW | E92: F_25A_295 | F92: FI-53246-0002 | G92: Saint-Pierre-des-Nids | H92: 2021 | I92: COL01000000008451098 | J92: 349 | K92: 349 | L92: RTO livré | M92: 53246SPN | N92: T3 2018 | O92: T3 2018
C93: 53246PNW | D93: PNW | E93: F_25A_296 | F93: FI-53052-0000 | G93: Champfrémont | H93: 2021 | I93: COL01000000008451098 | J93: 385 | K93: 385 | L93: RTO livré | M93: 53246SPN | N93: T3 2018 | O93: T3 2018
A94: 201801-53147-MAYE | B94: Mayenne Fibre | C94: 53197QAG | D94: QAG | E94: V_03A_001 | G94: La Rouaudiere | H94: 2021 | I94: COL01000000008986265 | J94: 376 | K94: 376 | L94: RTO livré | M94: 53197SG3 | N94: T1 2020 | O94: T1 2020
C95: 53197QAG | D95: QAG | E95: V_03A_002 | G95: Saint-Aignan-sur-Roe | H95: 2021 | I95: COL01000000008986265 | J95: 383 | K95: 383 | L95: RTO livré | M95: 53197SG3 | N95: T1 2020 | O95: T1 2020
C96: 53197QAG | D96: QAG | E96: V_03A_003 | G96: Saint-Aignan-sur-Roe | H96: 2021 | I96: COL01000000008986265 | J96: 363 | K96: 363 | L96: RTO livré | M96: 53197SG3 | N96: T1 2020 | O96: T1 2020
C97: 53197QAG | D97: QAG | E97: V_03A_004 | G97: Congrier | H97: 2021 | I97: COL01000000008986265 | J97: 353 | K97: 353 | L97: RTO livré | M97: 53197SG3 | N97: T1 2020 | O97: T1 2020
A98: 201801-53147-MAYE | B98: Mayenne Fibre | C98: 53107QGR | D98: QGR | E98: E_11A_191 | G98: Levaré | H98: 2021 | I98: COL01000000008687086 | J98: 392 | K98: 392 | L98: RTO livré | M98: 53107GOR | N98: T2 2020 | O98: T2 2020
C99: 53107QGR | D99: QGR | E99: E_11A_192 | G99: Colombiers-du-Plessis | H99: 2021 | I99: COL01000000008687086 | J99: 433 | K99: 433 | L99: RTO livré | M99: 53107GOR | N99: T2 2020 | O99: T2 2020
C100: 53107QGR | D100: QGR | E100: E_11A_251 | G100: Brecé | H100: 2021 | I100: COL01000000008687086 | J100: 390 | K100: 390 | L100: RTO livré | M100: 53107GOR | N100: T2 2020 | O100: T2 2020
C101: 53107QGR | D101: QGR | E101: E_11A_252 | G101: Gorron | H101: 2021 | I101: COL01000000008687086 | J101: 450 | K101: 450 | L101: RTO livré | M101: 53107GOR | N101: T2 2020 | O101: T2 2020
C102: 53107QGR | D102: QGR | E102: E_11A_253 | G102: Gorron | H102: 2021 | I102: COL01000000008687086 | J102: 373 | K102: 373 | L102: RTO livré | M102: 53107GOR | N102: T2 2020 | O102: T2 2020
C103: 53107QGR | D103: QGR | E103: E_11A_254 | G103: Gorron | H103: 2021 | I103: COL01000000008687086 | J103: 450 | K103: 450 | L103: RTO livré | M103: 53107GOR | N103: T2 2020 | O103: T2 2020
C104: 53107QGR | D104: QGR | E104: E_11A_255 | G104: Hercé | H104: 2021 | I104: COL01000000008687086 | J104: 328 | K104: 328 | L104: RTO livré | M104: 53107GOR | N104: T2 2020 | O104: T2 2020
C105: 53107QGR | D105: QGR | E105: E_11A_256 | G105: Lesbois | H105: 2021 | I105: COL01000000008687086 | J105: 361 | K105: 361 | L105: RTO livré | M105: 53107GOR | N105: T2 2020 | O105: T2 2020
C106: 53107QGR | D106: QGR | E106: E_11A_257 | G106: Désertines | H106: 2021 | I106: COL01000000008687086 | J106: 369 | K106: 369 | L106: RTO livré | M106: 53107GOR | N106: T2 2020 | O106: T2 2020
C107: 53107QGR | D107: QGR | E107: E_11A_258 | G107: Gorron | H107: 2021 | I107: COL01000000008687086 | J107: 434 | K107: 434 | L107: RTO livré | M107: 53107GOR | N107: T2 2020 | O107: T2 2020
C108: 53107QGR | D108: QGR | E108: E_11A_259 | G108: Gorron | H108: 2021 | I108: COL01000000008687086 | J108: 414 | K108: 414 | L108: RTO livré | M108: 53107GOR | N108: T2 2020 | O108: T2 2020
A109: 201801-53147-MAYE | B109: Mayenne Fibre | C109: 53234QLP | D109: QLP | E109: F_16B_243 | F109: FI-53216-0001 | G109: Saint-Fraimbault-de-Prieres | H109: 2021 | I109: COL01000000008522174 | J109: 370 | K109: 370 | L109: RTO livré | M109: 53234VIG | N109: T2 2019 | O109: T2 2019
C110: 53234QLP | D110: QLP | E110: F_16B_245 | F110: FI-53234-0000 | G110: Saint-Loup-du-Gast | H110: 2021 | I110: COL01000000008522174 | J110: 378 | K110: 378 | L110: RTO livré | M110: 53234VIG | N110: T2 2019 | O110: T2 2019
C111: 53234QLP | D111: QLP | E111: F_16B_246 | F111: FI-53051-0000 | G111: Champéon | H111: 2021 | I111: COL01000000008522174 | J111: 340 | K111: 340 | L111: RTO livré | M111: 53234VIG | N111: T2 2019 | O111: T2 2019
C112: 53234QLP | D112: QLP | E112: F_16B_247 | F112: FI-53160-0000 | G112: Montreuil-Poulay | H112: 2021 | I112: COL01000000008522174 | J112: 328 | K112: 328 | L112: RTO livré | M112: 53234VIG | N112: T2 2019 | O112: T2 2019
C113: 53234QLP | D113: QLP | E113: F_16B_268 | F113: FI-53055-0000 | G113: Chantrigné | H113: 2021 | I113: COL01000000008522174 | J113: 381 | K113: 381 | L113: RTO livré | M113: 53234VIG | N113: T2 2019 | O113: T2 2019
C114: 53234QLP | D114: QLP | E114: QLP_501 | F114: FI-53216-0000 | G114: Saint-Fraimbault-de-Prieres | H114: 2021 | I114: COL01000000008522174 | J114: 387 | K114: 387 | L114: RTO livré | M114: 53234VIG | N114: T2 2019 | O114: T2 2019
A115: 201801-53147-MAYE | B115: Mayenne Fibre | C115: 53186QLT | D115: QLT | E115: T_10A_076 | F115: FI-53186-0000 | G115: Quelaines-Saint-Gault | H115: 2021 | I115: COL01000000008598284 | J115: 577 | K115: 577 | L115: RTO livré | M115: 53186QLN | N115: T2 2019 | O115: T2 2019
C116: 53186QLT | D116: QLT | E116: T_10A_078 | F116: FI-53186-0001 | G116: Quelaines-Saint-Gault | H116: 2021 | I116: COL01000000008598284 | J116: 524 | K116: 524 | L116: RTO livré | M116: 53186QLN | N116: T2 2019 | O116: T2 2019
C117: 53186QLT | D117: QLT | E117: T_10A_073 | F117: FI-53136-0000 | G117: Loigné-sur-Mayenne | H117: 2021 | I117: COL01000000008598284 | J117: 380 | K117: 380 | L117: RTO livré | M117: 53186QLN | N117: T2 2019 | O117: T2 2019
C118: 53186QLT | D118: QLT | E118: T_10A_075 | F118: FI-53117-0000 | G118: Houssay | H118: 2021 | I118: COL01000000008598284 | J118: 350 | K118: 350 | L118: RTO livré | M118: 53186QLN | N118: T2 2019 | O118: T2 2019
C119: 53249QTH | D119: QLT | E119: T_10A_077 | F119: FI-53172-0000 | G119: Origné | H119: 2021 | I119: COL01000000008770077 | J119: 214 | K119: 214 | L119: RTO livré | M119: 53186QLN | N119: T2 2019 | O119: T2 2019
A120: 201801-53147-MAYE | B120: Mayenne Fibre | C120: 53249QTH | D120: QTH | E120: L_23A_134 | F120: FI-53249-0000 | G120: Saint-Pierre-sur-Orthe | H120: 2021 | I120: COL01000000008770077 | J120: 405 | K120: 405 | L120: RTO livré | M120: 53249SNH | N120: T2 2019 | O120: T2 2019
C121: 53249QTH | D121: QTH | E121: L_23A_135 | F121: FI-53239-0000 | G121: Saint Martin de Connée | H121: 2021 | I121: COL01000000008770077 | J121: 400 | K121: 400 | L121: RTO livré | M121: 53249SNH | N121: T2 2019 | O121: T2 2019
C122: 53249QTH | D122: QTH | E122: L_23A_136 | F122: FI-53120-0000 | G122: Izé | H122: 2021 | I122: COL01000000008770077 | J122: 395 | K122: 395 | L122: RTO livré | M122: 53249SNH | N122: T2 2019 | O122: T2 2019
A123: 201801-53147-MAYE | B123: Mayenne Fibre | C123: 53190RBI | D123: RBI | E123: F_19A_275 | G123: Charchigné | H123: 2021 | I123: COL01000000011025239 | J123: 431 | K123: 431 | L123: en cours de déploiement | M123: 53190RIB | N123: T4 2019 | O123: T4 2019
C124: 53190RBI | D124: RBI | E124: F_19A_276 | G124: Le Ham | H124: 2021 | I124: COL01000000011025239 | J124: 436 | K124: 436 | L124: en cours de déploiement | M124: 53190RIB | N124: T4 2019 | O124: T4 2019
C125: 53190RBI | D125: RBI | E125: F_19A_277 | G125: Le Ribay | H125: 2021 | I125: COL01000000011025239 | J125: 450 | K125: 450 | L125: en cours de déploiement | M125: 53190RIB | N125: T4 2019 | O125: T4 2019
C126: 53190RBI | D126: RBI | E126: F_19A_278 | G126: Le Horps | H126: 2021 | I126: COL01000000011025239 | J126: 411 | K126: 411 | L126: en cours de déploiement | M126: 53190RIB | N126: T4 2019 | O126: T4 2019
A127: 201801-53147-MAYE | B127: Mayenne Fibre | C127: 53191REH | D127: REH | E127: U_04A_013 | G127: Brains-sur-les-Marches | H127: 2021 | I127: COL01000000008687093 | J127: 354 | K127: 354 | L127: RTO livré | M127: 53191ROE | N127: T2 2020 | O127: T2 2020
C128: 53191REH | D128: REH | E128: U_04A_014 | G128: Laubrières | H128: 2021 | I128: COL01000000008687093 | J128: 424 | K128: 424 | L128: RTO livré | M128: 53191ROE | N128: T2 2020 | O128: T2 2020
C129: 53191REH | D129: REH | E129: U_04A_015 | G129: La Roé | H129: 2021 | I129: COL01000000008687093 | J129: 347 | K129: 347 | L129: RTO livré | M129: 53191ROE | N129: T2 2020 | O129: T2 2020
C130: 53191REH | D130: REH | E130: U_04A_016 | G130: Ballots | H130: 2021 | I130: COL01000000008687093 | J130: 327 | K130: 327 | L130: RTO livré | M130: 53191ROE | N130: T2 2020 | O130: T2 2020
C131: 53191REH | D131: REH | E131: U_04A_017 | G131: Ballots | H131: 2021 | I131: COL01000000008687093 | J131: 325 | K131: 325 | L131: RTO livré | M131: 53191ROE | N131: T2 2020 | O131: T2 2020
C132: 53191REH | D132: REH | E132: U_04A_018 | G132: Cuillé | H132: 2021 | I132: COL01000000008687093 | J132: 400 | K132: 400 | L132: RTO livré | M132: 53191ROE | N132: T2 2020 | O132: T2 2020
A133: 201801-53147-MAYE | B133: Mayenne Fibre | C133: 53096RND | D133: RND | E133: I_08A_168 | F133: FI-53096-0000 | G133: Ernée | H133: 2021 | I133: COL01000000008148245 | J133: 319 | K133: 319 | L133: RTO livré | M133: 53096ERN | N133: T2 2019 | O133: T2 2019
C134: 53096RND | D134: RND | E134: I_08A_169 | F134: FI-53096-0001 | G134: Ernée | H134: 2021 | I134: COL01000000008148245 | J134: 376 | K134: 376 | L134: RTO livré | M134: 53096ERN | N134: T2 2019 | O134: T2 2019
C135: 53096RND | D135: RND | E135: I_08A_172 | F135: FI-53096-000B | G135: Montenay | H135: 2021 | I135: COL01000000008148245 | J135: 409 | K135: 409 | L135: RTO livré | M135: 53096ERN | N135: T2 2019 | O135: T2 2019
C136: 53096RND | D136: RND | E136: I_08A_175 | F136: FI-53096-0002 | G136: Ernée | H136: 2021 | I136: COL01000000008148245 | J136: 321 | K136: 321 | L136: RTO livré | M136: 53096ERN | N136: T2 2019 | O136: T2 2019
C137: 53096RND | D137: RND | E137: I_08A_178 | F137: FI-53096-0008 | G137: Ernée | H137: 2021 | I137: COL01000000008148245 | J137: 306 | K137: 306 | L137: RTO livré | M137: 53096ERN | N137: T2 2019 | O137: T2 2019
C138: 53096RND | D138: RND | E138: I_08A_167 | F138: FI-53096-0003 | G138: Ernée | H138: 2021 | I138: COL01000000008148245 | J138: 319 | K138: 319 | L138: RTO livré | M138: 53096ERN | N138: T2 2019 | O138: T2 2019
C139: 53096RND | D139: RND | E139: I_08A_171 | F139: FI-53155-0000 | G139: Montenay | H139: 2021 | I139: COL01000000008148245 | J139: 354 | K139: 354 | L139: RTO livré | M139: 53096ERN | N139: T2 2019 | O139: T2 2019
C140: 53096RND | D140: RND | E140: I_08A_177 | F140: FI-53096-0007 | G140: Ernée | H140: 2021 | I140: COL01000000008148245 | J140: 311 | K140: 311 | L140: RTO livré | M140: 53096ERN | N140: T2 2019 | O140: T2 2019
C141: 53096RND | D141: RND | E141: RND_601 | F141: FI-53096-0004 | G141: Ernée | H141: 2021 | I141: COL01000000008148245 | J141: 351 | K141: 351 | L141: RTO livré | M141: 53096ERN | N141: T2 2019 | O141: T2 2019
C142: 53096RND | D142: RND | E142: I_08A_166 | F142: FI-53096-0009 | G142: Ernée | H142: 2021 | I142: COL01000000008148245 | J142: 359 | K142: 359 | L142: RTO livré | M142: 53096ERN | N142: T2 2019 | O142: T2 2019
C143: 53096RND | D143: RND | E143: I_08A_170 | F143: FI-53096-0005 | G143: Ernée | H143: 2021 | I143: COL01000000008148245 | J143: 347 | K143: 347 | L143: RTO livré | M143: 53096ERN | N143: T2 2019 | O143: T2 2019
C144: 53096RND | D144: RND | E144: I_08A_173 | F144: FI-53096-000A | G144: Ernée | H144: 2021 | I144: COL01000000008148245 | J144: 319 | K144: 319 | L144: RTO livré | M144: 53096ERN | N144: T2 2019 | O144: T2 2019
C145: 53096RND | D145: RND | E145: I_08A_174 | F145: FI-53177-0000 | G145: Saint-Pierre-des-Landes | H145: 2021 | I145: COL01000000008148245 | J145: 306 | K145: 306 | L145: RTO livré | M145: 53096ERN | N145: T2 2019 | O145: T2 2019
C146: 53096RND | D146: RND | E146: I_08A_176 | F146: FI-53096-0006 | G146: Ernée | H146: 2021 | I146: COL01000000008148245 | J146: 313 | K146: 313 | L146: RTO livré | M146: 53096ERN | N146: T2 2019 | O146: T2 2019
A147: 201801-53147-MAYE | B147: Mayenne Fibre | C147: 53211SDJ | D147: SDJ | E147: G_10A_193 | G147: Saint-Denis-de-Gastines | H147: 2021 | I147: COL01000000008522108 | J147: 322 | K147: 322 | L147: RTO livré | M147: 53211SDG | N147: T1 2020 | O147: T1 2020
C148: 53211SDJ | D148: SDJ | E148: G_10A_194 | G148: Saint-Denis-de-Gastines | H148: 2021 | I148: COL01000000008522108 | J148: 324 | K148: 324 | L148: RTO livré | M148: 53211SDG | N148: T1 2020 | O148: T1 2020
C149: 53211SDJ | D149: SDJ | E149: G_10A_195 | G149: Saint-Denis-de-Gastines | H149: 2021 | I149: COL01000000008522108 | J149: 364 | K149: 364 | L149: RTO livré | M149: 53211SDG | N149: T1 2020 | O149: T1 2020
C150: 53211SDJ | D150: SDJ | E150: G_10A_196 | G150: Chatillon-sur-Colmont | H150: 2021 | I150: COL01000000008522108 | J150: 336 | K150: 336 | L150: RTO livré | M150: 53211SDG | N150: T1 2020 | O150: T1 2020
C151: 53211SDJ | D151: SDJ | E151: G_10A_197 | G151: Vautorte | H151: 2021 | I151: COL01000000008522108 | J151: 364 | K151: 364 | L151: RTO livré | M151: 53211SDG | N151: T1 2020 | O151: T1 2020
C152: 53211SDJ | D152: SDJ | E152: G_10A_250 | G152: Chatillon-sur-Colmont | H152: 2021 | I152: COL01000000008522108 | J152: 338 | K152: 338 | L152: RTO livré | M152: 53211SDG | N152: T1 2020 | O152: T1 2020
A153: 201801-53147-MAYE | B153: Mayenne Fibre | C153: 53248SJW | D153: SJW | E153: Q_19A_092 | F153: FI-53076-0000 | G153: Cossé-en-Champagne | H153: 2021 | I153: COL01000000008521457 | J153: 426 | K153: 426 | L153: RTO livré | M153: 53228SJE | N153: T2 2019 | O153: T2 2019
C154: 53248SJW | D154: SJW | E154: Q_19A_093 | F154: FI-53264-0000 | G154: Thorigné-en-Charnie | H154: 2021 | I154: COL01000000008521457 | J154: 275 | K154: 275 | L154: RTO livré | M154: 53228SJE | N154: T2 2019 | O154: T2 2019
C155: 53248SJW | D155: SJW | E155: Q_19A_102 | F155: FI-53228-0000 | G155: Blandouet - Saint Jean | H155: 2021 | I155: COL01000000008521457 | J155: 352 | K155: 352 | L155: RTO livré | M155: 53228SJE | N155: T2 2019 | O155: T2 2019
A156: 201801-53147-MAYE | B156: Mayenne Fibre | C156: 53255SZW | D156: SZW | E156: O_19A_104 | F156: FI-53255-0104 | G156: Sainte-Suzanne et Chammes | H156: 2021 | I156: COL01000000009037100 | J156: 309 | K156: 309 | L156: RTO livré | M156: 53255SSU | N156: T1 2020 | O156: T1 2020
C157: 53255SZW | D157: SZW | E157: O_19A_105 | F157: FI-53255-0105 | G157: Sainte-Suzanne et Chammes | H157: 2021 | I157: COL01000000009037100 | J157: 341 | K157: 341 | L157: RTO livré | M157: 53255SSU | N157: T1 2020 | O157: T1 2020
C158: 53255SZW | D158: SZW | E158: O_19A_106 | G158: Sainte-Suzanne et Chammes | H158: 2021 | I158: COL01000000009037100 | J158: 363 | K158: 363 | L158: RTO livré | M158: 53255SSU | N158: T1 2020 | O158: T1 2020
C159: 53255SZW | D159: SZW | E159: O_19A_107 | F159: FI-53265-0107 | G159: Torcé-Viviers-en-Charnie | H159: 2021 | I159: COL01000000009037100 | J159: 307 | K159: 307 | L159: RTO livré | M159: 53255SSU | N159: T1 2020 | O159: T1 2020
A160: 201801-53147-MAYE | B160: Mayenne Fibre | C160: 53267VGF | D160: VGF | E160: Q_17A_094 | F160: FI-53022-0094 | G160: La Bazouge-de-Chemere | H160: 2021 | I160: COL01000000008598278 | J160: 317 | K160: 317 | L160: RTO livré | M160: 53267VAI | N160: T4 2019 | O160: T4 2019
C161: 53267VGF | D161: VGF | E161: Q_17A_095 | F161: FI-53267-0095 | G161: Vaiges | H161: 2021 | I161: COL01000000008598278 | J161: 300 | K161: 300 | L161: RTO livré | M161: 53267VAI | N161: T4 2019 | O161: T4 2019
C162: 53267VGF | D162: VGF | E162: Q_17A_103 | F162: FI-53232-0103 | G162: Vaiges | H162: 2021 | I162: COL01000000008598278 | J162: 315 | K162: 315 | L162: RTO livré | M162: 53267VAI | N162: T4 2019 | O162: T4 2019
C163: 53267VGF | D163: VGF | E163: Q_17A_146 | F163: FI-53267-0146 | G163: Vaiges | H163: 2021 | I163: COL01000000008598278 | J163: 308 | K163: 308 | L163: RTO livré | M163: 53267VAI | N163: T4 2019 | O163: T4 2019
A164: 201801-53147-MAYE | B164: Mayenne Fibre | C164: 53271VJH | D164: VJH | E164: H_21A_143 | F164: FI-53271-0003 | G164: VILLAINES-LA-JUHEL | H164: 2021 | I164: COL01000000008933714 | J164: 357 | K164: 357 | L164: RTO livré | M164: 53271VIL | N164: T3 2019 | O164: T3 2019
C165: 53271VJH | D165: VJH | E165: H_21A_144 | F165: FI-53013-0000 | G165: AVERTON | H165: 2021 | I165: COL01000000008933714 | J165: 385 | K165: 385 | L165: RTO livré | M165: 53271VIL | N165: T3 2019 | O165: T3 2019
C166: 53271VJH | D166: VJH | E166: H_21A_286 | F166: FI-53139-0000 | G166: LOUPFOUGERES | H166: 2021 | I166: COL01000000008933714 | J166: 374 | K166: 374 | L166: RTO livré | M166: 53271VIL | N166: T3 2019 | O166: T3 2019
C167: 53271VJH | D167: VJH | E167: H_21A_287 | F167: FI-53271-0005 | G167: VILLAINES-LA-JUHEL | H167: 2021 | I167: COL01000000008933714 | J167: 377 | K167: 377 | L167: RTO livré | M167: 53271VIL | N167: T3 2019 | O167: T3 2019
C168: 53271VJH | D168: VJH | E168: H_21A_288 | F168: FI-53271-0004 | G168: VILLAINES-LA-JUHEL | H168: 2021 | I168: COL01000000008933714 | J168: 355 | K168: 355 | L168: RTO livré | M168: 53271VIL | N168: T3 2019 | O168: T3 2019
C169: 53271VJH | D169: VJH | E169: H_21A_289 | F169: FI-53271-0001 | G169: VILLAINES-LA-JUHEL | H169: 2021 | I169: COL01000000008933714 | J169: 361 | K169: 361 | L169: RTO livré | M169: 53271VIL | N169: T3 2019 | O169: T3 2019
C170: 53271VJH | D170: VJH | E170: H_21A_290 | F170: FI-53271-0000 | G170: VILLAINES-LA-JUHEL | H170: 2021 | I170: COL01000000008933714 | J170: 449 | K170: 449 | L170: RTO livré | M170: 53271VIL | N170: T3 2019 | O170: T3 2019
C171: 53271VJH | D171: VJH | E171: VJH_504 | F171: FI-53271-0006 | G171: VILLAINES-LA-JUHEL | H171: 2021 | I171: COL01000000008933714 | J171: 374 | K171: 374 | L171: RTO livré | M171: 53271VIL | N171: T3 2019 | O171: T3 2019
A172: 201801-53147-MAYE | B172: Mayenne Fibre | C172: 53016WBS | D172: WBS | E172: K_20A_140 | G172: Bais | H172: 2021 | I172: COL01000000009479028 | J172: 408 | K172: 408 | L172: RTO livré | M172: 53016BAI | N172: T4 2019 | O172: T4 2019
C173: 53016WBS | D173: WBS | E173: K_20A_141 | G173: Champgenéteux | H173: 2021 | I173: COL01000000009479028 | J173: 393 | K173: 393 | L173: RTO livré | M173: 53016BAI | N173: T4 2019 | O173: T4 2019
C174: 53016WBS | D174: WBS | E174: K_20A_142 | G174: Bais | H174: 2021 | I174: COL01000000009479028 | J174: 441 | K174: 441 | L174: RTO livré | M174: 53016BAI | N174: T4 2019 | O174: T4 2019
C175: 53016WBS | D175: WBS | E175: K_20A_145 | G175: Trans | H175: 2021 | I175: COL01000000009479028 | J175: 435 | K175: 435 | L175: RTO livré | M175: 53016BAI | N175: T4 2019 | O175: T4 2019
C176: 53016WBS | D176: WBS | E176: K_20A_235 | G176: Hambers | H176: 2021 | I176: COL01000000009479028 | J176: 386 | K176: 386 | L176: RTO livré | M176: 53016BAI | N176: T4 2019 | O176: T4 2019
A177: 201801-53147-MAYE | B177: Mayenne Fibre | C177: 53077WCS | D177: WCS | E177: S_08B_019 | F177: FI-53250-0000 | G177: Saint-Poix | H177: 2021 | I177: COL01000000008522411 | J177: 266 | K177: 266 | L177: RTO livré | M177: 53077COS | N177: T3 2019 | O177: T3 2019
C178: 53077WCS | D178: WCS | E178: S_08B_020 | F178: FI-53151-0000 | G178: Méral | H178: 2021 | I178: COL01000000008522411 | J178: 310 | K178: 310 | L178: RTO livré | M178: 53077COS | N178: T3 2019 | O178: T3 2019
C179: 53077WCS | D179: WCS | E179: S_08B_021 | F179: FI-53077-0002 | G179: Cossé-le-Vivien | H179: 2021 | I179: COL01000000008522411 | J179: 321 | K179: 321 | L179: RTO livré | M179: 53077COS | N179: T3 2019 | O179: T3 2019
C180: 53077WCS | D180: WCS | E180: S_08B_022 | F180: FI-53151-0001 | G180: Méral | H180: 2021 | I180: COL01000000008522411 | J180: 301 | K180: 301 | L180: RTO livré | M180: 53077COS | N180: T3 2019 | O180: T3 2019
C181: 53077WCS | D181: WCS | E181: S_08B_023 | F181: FI-53077-0003 | G181: Cossé-le-Vivien | H181: 2021 | I181: COL01000000008522411 | J181: 346 | K181: 346 | L181: RTO livré | M181: 53077COS | N181: T3 2019 | O181: T3 2019
C182: 53077WCS | D182: WCS | E182: S_08B_024 | F182: FI-53077-0000 | G182: Cossé-le-Vivien | H182: 2021 | I182: COL01000000008522411 | J182: 507 | K182: 507 | L182: RTO livré | M182: 53077COS | N182: T3 2019 | O182: T3 2019
C183: 53077WCS | D183: WCS | E183: S_08B_025 | F183: FI-53075-0000 | G183: Cosme | H183: 2021 | I183: COL01000000008522411 | J183: 325 | K183: 325 | L183: RTO livré | M183: 53077COS | N183: T3 2019 | O183: T3 2019
C184: 53077WCS | D184: WCS | E184: S_08B_056 | F184: FI-53082-0000 | G184: Courbeveille | H184: 2021 | I184: COL01000000008522411 | J184: 286 | K184: 286 | L184: RTO livré | M184: 53077COS | N184: T3 2019 | O184: T3 2019
C185: 53077WCS | D185: WCS | E185: S_08B_057 | F185: FI-53011-0000 | G185: Astillé | H185: 2021 | I185: COL01000000008522411 | J185: 360 | K185: 360 | L185: RTO livré | M185: 53077COS | N185: T3 2019 | O185: T3 2019
C186: 53077WCS | D186: WCS | E186: WCS_801 | F186: FI-53077-0004 | G186: Cossé-le-Vivien | H186: 2021 | I186: COL01000000008522411 | J186: 301 | K186: 301 | L186: RTO livré | M186: 53077COS | N186: T3 2019 | O186: T3 2019
C187: 53077WCS | D187: WCS | E187: WCS_802 | F187: FI-53077-0001 | G187: Cossé-le-Vivien | H187: 2021 | I187: COL01000000008522411 | J187: 329 | K187: 329 | L187: RTO livré | M187: 53077COS | N187: T3 2019 | O187: T3 2019
A188: 201801-53147-MAYE | B188: Mayenne Fibre | C188: 53084XCR | D188: XCR | E188: V_07D_033 | F188: FI-53084-0002 | G188: Craon | H188: 2021 | I188: COL01000000008166944 | J188: 351 | K188: 351 | L188: RTO livré | M188: 53084CRA | N188: T2 2018 | O188: T2 2018
C189: 53084XCR | D189: XCR | E189: V_07D_035 | F189: FI-53084-0005 | G189: Craon | H189: 2021 | I189: COL01000000008166944 | J189: 310 | K189: 310 | L189: RTO livré | M189: 53084CRA | N189: T2 2018 | O189: T2 2018
C190: 53084XCR | D190: XCR | E190: V_07D_026 | F190: FI-53135-0000 | G190: Livré-la-Touche | H190: 2021 | I190: COL01000000008166944 | J190: 307 | K190: 307 | L190: RTO livré | M190: 53084CRA | N190: T2 2018 | O190: T2 2018
C191: 53084XCR | D191: XCR | E191: V_07D_027 | F191: FI-53012-0000 | G191: Athée | H191: 2021 | I191: COL01000000008166944 | J191: 210 | K191: 210 | L191: RTO livré | M191: 53084CRA | N191: T2 2018 | O191: T2 2018
C192: 53084XCR | D192: XCR | E192: V_07D_028 | F192: FI-53084-0003 | G192: Craon | H192: 2021 | I192: COL01000000008166944 | J192: 360 | K192: 360 | L192: RTO livré | M192: 53084CRA | N192: T2 2018 | O192: T2 2018
C193: 53084XCR | D193: XCR | E193: V_07D_029 | F193: FI-53084-0001 | G193: Craon | H193: 2021 | I193: COL01000000008166944 | J193: 346 | K193: 346 | L193: RTO livré | M193: 53084CRA | N193: T2 2018 | O193: T2 2018
C194: 53084XCR | D194: XCR | E194: V_07D_030 | F194: FI-53084-0000 | G194: Craon | H194: 2021 | I194: COL01000000008166944 | J194: 535 | K194: 535 | L194: RTO livré | M194: 53084CRA | N194: T2 2018 | O194: T2 2018
C195: 53084XCR | D195: XCR | E195: V_07D_031 | F195: FI-53084-0009 | G195: Craon | H195: 2021 | I195: COL01000000008166944 | J195: 312 | K195: 312 | L195: RTO livré | M195: 53084CRA | N195: T2 2018 | O195: T2 2018
C196: 53084XCR | D196: XCR | E196: V_07D_032 | F196: FI-53084-0006 | G196: Craon | H196: 2021 | I196: COL01000000008166944 | J196: 340 | K196: 340 | L196: RTO livré | M196: 53084CRA | N196: T2 2018 | O196: T2 2018
C197: 53084XCR | D197: XCR | E197: V_07D_034 | F197: FI-53084-0007 | G197: Craon | H197: 2021 | I197: COL01000000008166944 | J197: 378 | K197: 378 | L197: RTO livré | M197: 53084CRA | N197: T2 2018 | O197: T2 2018
C198: 53084XCR | D198: XCR | E198: V_07D_036 | F198: FI-53180-0000 | G198: Pommerieux | H198: 2021 | I198: COL01000000008166944 | J198: 358 | K198: 358 | L198: RTO livré | M198: 53084CRA | N198: T2 2018 | O198: T2 2018
C199: 53084XCR | D199: XCR | E199: V_07D_037 | F199: FI-53068-0000 | G199: Cherance | H199: 2021 | I199: COL01000000008166944 | J199: 325 | K199: 325 | L199: RTO livré | M199: 53084CRA | N199: T2 2018 | O199: T2 2018
C200: 53084XCR | D200: XCR | E200: XCR_800 | F200: FI-53084-0008 | G200: Craon | H200: 2021 | I200: COL01000000008166944 | J200: 334 | K200: 334 | L200: RTO livré | M200: 53084CRA | N200: T2 2018 | O200: T2 2018
... 117 more rows
